[Event "*** Titled Tuesday Blitz"]
[Site "Chess.com"]
[Date "2020.04.14"]
[Round "4"]
[White "PotapovaM"]
[Black "EugeneRougon"]
[Result "1/2-1/2"]
[WhiteElo "2524"]
[BlackElo "2688"]
[TimeControl "180+1"]
[EndTime "10:42:16 PDT"]
[Termination "Game drawn by repetition"]

1. d4 {[%clk 0:03:00.9]} 1... d6 {[%clk 0:02:58.6]} 2. e4 {[%clk 0:03:01]} 2...
Nf6 {[%clk 0:02:58.5]} 3. Nc3 {[%clk 0:03:01.4]} 3... g6 {[%clk 0:02:58.9]} 4.
Bg5 {[%clk 0:03:00.5]} 4... Bg7 {[%clk 0:02:57.7]} 5. e5 {[%clk 0:03:00.6]} 5...
Nfd7 {[%clk 0:02:48.5]} 6. exd6 {[%clk 0:03:00.6]} 6... cxd6 {[%clk 0:02:46.7]}
7. Qd2 {[%clk 0:02:58.9]} 7... Nc6 {[%clk 0:02:31.4]} 8. Nf3 {[%clk 0:02:58.3]}
8... O-O {[%clk 0:02:23.3]} 9. Be2 {[%clk 0:02:48.6]} 9... Nf6 {[%clk
0:02:15.6]} 10. O-O {[%clk 0:02:48.3]} 10... Bg4 {[%clk 0:02:06]} 11. Rfe1
{[%clk 0:02:45.5]} 11... Rc8 {[%clk 0:02:02.1]} 12. h3 {[%clk 0:02:44.8]} 12...
Bf5 {[%clk 0:01:55.1]} 13. a3 {[%clk 0:02:44.6]} 13... Re8 {[%clk 0:01:51.1]}
14. Rad1 {[%clk 0:02:41.7]} 14... Ne4 {[%clk 0:01:30.8]} 15. Nxe4 {[%clk
0:02:40.3]} 15... Bxe4 {[%clk 0:01:31.7]} 16. c3 {[%clk 0:02:40.2]} 16... d5
{[%clk 0:01:22.4]} 17. Bh6 {[%clk 0:02:33.9]} 17... Bxh6 {[%clk 0:01:13.6]} 18.
Qxh6 {[%clk 0:02:34.8]} 18... Bxf3 {[%clk 0:01:14.2]} 19. Bxf3 {[%clk
0:02:34.2]} 19... e6 {[%clk 0:01:15.1]} 20. h4 {[%clk 0:02:30.2]} 20... Qf6
{[%clk 0:01:14.9]} 21. h5 {[%clk 0:02:26.4]} 21... Qg7 {[%clk 0:01:15.1]} 22.
Qe3 {[%clk 0:02:24.9]} 22... g5 {[%clk 0:01:15.2]} 23. Qd2 {[%clk 0:01:57.4]}
23... h6 {[%clk 0:01:12]} 24. g3 {[%clk 0:01:51.8]} 24... Na5 {[%clk 0:01:10.6]}
25. Be2 {[%clk 0:01:46.9]} 25... Qf6 {[%clk 0:01:07.2]} 26. Kg2 {[%clk
0:01:44.8]} 26... a6 {[%clk 0:01:07.1]} 27. Bd3 {[%clk 0:01:44.4]} 27... b5
{[%clk 0:01:03.8]} 28. Re3 {[%clk 0:01:44.1]} 28... Nc4 {[%clk 0:00:54.4]} 29.
Bxc4 {[%clk 0:01:44.1]} 29... bxc4 {[%clk 0:00:55.3]} 30. Rf3 {[%clk 0:01:44.3]}
30... Qe7 {[%clk 0:00:54.8]} 31. Re1 {[%clk 0:01:41.2]} 31... Rb8 {[%clk
0:00:54.5]} 32. Re2 {[%clk 0:01:40.7]} 32... Rb6 {[%clk 0:00:52]} 33. Qe3 {[%clk
0:01:34.6]} 33... Reb8 {[%clk 0:00:49.6]} 34. Qc1 {[%clk 0:00:44.3]} 34... Qb7
{[%clk 0:00:38.6]} 35. Re5 {[%clk 0:00:36.4]} 35... Rxb2 {[%clk 0:00:30.4]} 36.
Rxg5+ {[%clk 0:00:36.2]} 36... hxg5 {[%clk 0:00:31.3]} 37. Qxg5+ {[%clk
0:00:36.6]} 37... Kf8 {[%clk 0:00:31.9]} 38. h6 {[%clk 0:00:34.1]} 38... f5
{[%clk 0:00:15.6]} 39. g4 {[%clk 0:00:27.4]} 39... Qh7 {[%clk 0:00:12.8]} 40.
gxf5 {[%clk 0:00:24.7]} 40... e5 {[%clk 0:00:12.9]} 41. Qf6+ {[%clk 0:00:19.5]}
41... Ke8 {[%clk 0:00:09.1]} 42. Qxe5+ {[%clk 0:00:17.7]} 42... Qe7 {[%clk
0:00:09.3]} 43. Qxd5 {[%clk 0:00:13.4]} 43... Qb7 {[%clk 0:00:08.3]} 44. Qe6+
{[%clk 0:00:11.3]} 44... Qe7 {[%clk 0:00:06.8]} 45. Qd5 {[%clk 0:00:10.1]} 45...
Qb7 {[%clk 0:00:05.6]} 46. Qe6+ {[%clk 0:00:08.3]} 46... Kd8 {[%clk 0:00:04.6]}
47. f6 {[%clk 0:00:07]} 47... Rb6 {[%clk 0:00:04.4]} 48. Qe5 {[%clk 0:00:03.9]}
48... Qc7 {[%clk 0:00:03.4]} 49. f7 {[%clk 0:00:03.2]} 49... Kd7 {[%clk
0:00:01.9]} 50. Qf5+ {[%clk 0:00:02.8]} 50... Kc6 {[%clk 0:00:01.9]} 51. f8=Q
{[%clk 0:00:02.7]} 51... Rxf8 {[%clk 0:00:01.8]} 52. Qxf8 {[%clk 0:00:03.6]}
52... Kb7 {[%clk 0:00:02.7]} 53. Qf4 {[%clk 0:00:02.3]} 53... Rg6+ {[%clk
0:00:03]} 54. Kf1 {[%clk 0:00:02.1]} 54... Qxf4 {[%clk 0:00:03.6]} 55. Rxf4
{[%clk 0:00:03]} 55... Rxh6 {[%clk 0:00:04.5]} 56. Rf7+ {[%clk 0:00:02.9]} 56...
Kb6 {[%clk 0:00:04.6]} 57. Rf5 {[%clk 0:00:03.8]} 57... Rh1+ {[%clk 0:00:04.1]}
58. Ke2 {[%clk 0:00:03.7]} 58... Ra1 {[%clk 0:00:05]} 59. Rd5 {[%clk 0:00:03.9]}
59... Rxa3 {[%clk 0:00:04.6]} 60. Kd2 {[%clk 0:00:04.4]} 60... Ra2+ {[%clk
0:00:04.8]} 61. Ke3 {[%clk 0:00:04.5]} 61... Rc2 {[%clk 0:00:05.6]} 62. Rc5
{[%clk 0:00:04.1]} 62... Rxc3+ {[%clk 0:00:05.8]} 63. Ke4 {[%clk 0:00:04.4]}
63... Rc1 {[%clk 0:00:05.6]} 64. f4 {[%clk 0:00:04.5]} 64... Re1+ {[%clk
0:00:02.7]} 65. Kd5 {[%clk 0:00:03.5]} 65... Rf1 {[%clk 0:00:03.1]} 66. Kxc4
{[%clk 0:00:03.1]} 66... Rxf4 {[%clk 0:00:02.4]} 67. Re5 {[%clk 0:00:03.2]}
67... Rf6 {[%clk 0:00:01.8]} 68. d5 {[%clk 0:00:02.7]} 68... Rf4+ {[%clk
0:00:02]} 69. Kb3 {[%clk 0:00:02.5]} 69... Kc5 {[%clk 0:00:02.6]} 70. Re6 {[%clk
0:00:02.5]} 70... a5 {[%clk 0:00:02.7]} 71. Ra6 {[%clk 0:00:02.3]} 71... Kb5
{[%clk 0:00:03.2]} 72. Ra8 {[%clk 0:00:02.1]} 72... Rf3+ {[%clk 0:00:04.1]} 73.
Kc2 {[%clk 0:00:01.5]} 73... Rf5 {[%clk 0:00:03.5]} 74. Kb2 {[%clk 0:00:01.5]}
74... Rxd5 {[%clk 0:00:03.5]} 75. Rb8+ {[%clk 0:00:02.2]} 75... Ka4 {[%clk
0:00:03.9]} 76. Rf8 {[%clk 0:00:02]} 76... Rd2+ {[%clk 0:00:04.3]} 77. Kb1
{[%clk 0:00:02.5]} 77... Rh2 {[%clk 0:00:05.2]} 78. Rf4+ {[%clk 0:00:02.4]}
78... Kb5 {[%clk 0:00:05.5]} 79. Rf5+ {[%clk 0:00:02.7]} 79... Kb4 {[%clk
0:00:06.2]} 80. Rf4+ {[%clk 0:00:03.1]} 80... Kc3 {[%clk 0:00:06.8]} 81. Rf3+
{[%clk 0:00:03.5]} 81... Kd4 {[%clk 0:00:07.3]} 82. Rf4+ {[%clk 0:00:03.8]}
82... Ke3 {[%clk 0:00:07.7]} 83. Ra4 {[%clk 0:00:03.9]} 83... Rh5 {[%clk
0:00:07.8]} 84. Kb2 {[%clk 0:00:04.2]} 84... Kd3 {[%clk 0:00:07]} 85. Kb3 {[%clk
0:00:04.7]} 85... Rb5+ {[%clk 0:00:07.5]} 86. Ka3 {[%clk 0:00:04.8]} 86... Kc3
{[%clk 0:00:07.6]} 87. Ka2 {[%clk 0:00:05.1]} 87... Rb2+ {[%clk 0:00:07.2]} 88.
Ka1 {[%clk 0:00:05.4]} 88... Rb5 {[%clk 0:00:08.1]} 89. Ka2 {[%clk 0:00:05.6]}
89... Rb2+ {[%clk 0:00:07.8]} 90. Ka1 {[%clk 0:00:05.8]} 90... Rb5 {[%clk
0:00:06.6]} 91. Ka2 {[%clk 0:00:05.7]} 1/2-1/2

[Event "*** Titled Tuesday Blitz"]
[Site "Chess.com"]
[Date "2020.04.14"]
[Round "4"]
[White "BillieKimbah"]
[Black "SketchyMoves"]
[Result "1/2-1/2"]
[WhiteElo "2833"]
[BlackElo "2655"]
[TimeControl "180+1"]
[EndTime "10:42:24 PDT"]
[Termination "Game drawn - insufficient material"]

1. c4 {[%clk 0:03:00.9]} 1... b6 {[%clk 0:02:57.8]} 2. Nc3 {[%clk 0:02:59.9]}
2... e6 {[%clk 0:02:56.2]} 3. e4 {[%clk 0:02:59.8]} 3... Bb7 {[%clk 0:02:55.7]}
4. g3 {[%clk 0:02:58]} 4... Bb4 {[%clk 0:02:54.4]} 5. Bg2 {[%clk 0:02:57.1]}
5... Bxc3 {[%clk 0:02:53.2]} 6. bxc3 {[%clk 0:02:43]} 6... Ne7 {[%clk
0:02:52.3]} 7. Ne2 {[%clk 0:02:38.7]} 7... O-O {[%clk 0:02:51.6]} 8. O-O {[%clk
0:02:38.6]} 8... d6 {[%clk 0:02:52]} 9. d3 {[%clk 0:02:37.2]} 9... Nd7 {[%clk
0:02:50.9]} 10. Bg5 {[%clk 0:02:31]} 10... h6 {[%clk 0:02:47.8]} 11. Be3 {[%clk
0:02:30.9]} 11... Rb8 {[%clk 0:02:35.7]} 12. Qd2 {[%clk 0:02:30.1]} 12... d5
{[%clk 0:02:32.4]} 13. cxd5 {[%clk 0:02:20.2]} 13... exd5 {[%clk 0:02:32.6]} 14.
Rad1 {[%clk 0:02:10.7]} 14... dxe4 {[%clk 0:02:21.2]} 15. dxe4 {[%clk
0:02:10.3]} 15... Nf6 {[%clk 0:02:19.4]} 16. Qc2 {[%clk 0:02:09.8]} 16... Qe8
{[%clk 0:02:17.7]} 17. Nd4 {[%clk 0:02:06.4]} 17... c5 {[%clk 0:02:07.7]} 18.
Ne2 {[%clk 0:02:00]} 18... Ng6 {[%clk 0:02:04.1]} 19. f3 {[%clk 0:01:58]} 19...
Qe6 {[%clk 0:01:57.2]} 20. Rd2 {[%clk 0:01:41]} 20... Rbd8 {[%clk 0:01:56]} 21.
Rfd1 {[%clk 0:01:41.2]} 21... Rxd2 {[%clk 0:01:49.5]} 22. Qxd2 {[%clk
0:01:40.7]} 22... Re8 {[%clk 0:01:30]} 23. Nf4 {[%clk 0:01:39.2]} 23... Nxf4
{[%clk 0:01:29.5]} 24. Bxf4 {[%clk 0:01:39.8]} 24... Re7 {[%clk 0:01:21.1]} 25.
Qd8+ {[%clk 0:01:38.8]} 25... Re8 {[%clk 0:01:14.6]} 26. Qc7 {[%clk 0:01:35.3]}
26... Qe7 {[%clk 0:01:12.2]} 27. Qxe7 {[%clk 0:01:31.3]} 27... Rxe7 {[%clk
0:01:13.1]} 28. Bh3 {[%clk 0:01:29.6]} 28... Re8 {[%clk 0:00:53.2]} 29. Rd6
{[%clk 0:01:16.8]} 29... Bc8 {[%clk 0:00:33.8]} 30. Bxc8 {[%clk 0:01:01.3]}
30... Rxc8 {[%clk 0:00:34.7]} 31. Kf2 {[%clk 0:00:56.8]} 31... Kf8 {[%clk
0:00:31.1]} 32. e5 {[%clk 0:00:41.8]} 32... Ne8 {[%clk 0:00:31]} 33. Rd7 {[%clk
0:00:41]} 33... g5 {[%clk 0:00:23.3]} 34. Be3 {[%clk 0:00:30.9]} 34... Rc7
{[%clk 0:00:23.4]} 35. Rd8 {[%clk 0:00:30.8]} 35... Ke7 {[%clk 0:00:23.5]} 36.
Ra8 {[%clk 0:00:30.1]} 36... Rd7 {[%clk 0:00:22.2]} 37. f4 {[%clk 0:00:27.8]}
37... gxf4 {[%clk 0:00:18.9]} 38. Bxf4 {[%clk 0:00:27.2]} 38... Rd5 {[%clk
0:00:05.1]} 39. Bxh6 {[%clk 0:00:22.2]} 39... Rxe5 {[%clk 0:00:04.3]} 40. Bf4
{[%clk 0:00:22.7]} 40... Rd5 {[%clk 0:00:03.5]} 41. h4 {[%clk 0:00:21.8]} 41...
Nf6 {[%clk 0:00:02.8]} 42. Bg5 {[%clk 0:00:21.7]} 42... Ke6 {[%clk 0:00:02.5]}
43. Bf4 {[%clk 0:00:13.4]} 43... Rd3 {[%clk 0:00:02.6]} 44. c4 {[%clk
0:00:08.2]} 44... Rc3 {[%clk 0:00:02.7]} 45. Rxa7 {[%clk 0:00:05.5]} 45... Rc2+
{[%clk 0:00:03.1]} 46. Kf3 {[%clk 0:00:04.9]} 46... Rc3+ {[%clk 0:00:03.5]} 47.
Kg2 {[%clk 0:00:05.2]} 47... Rxc4 {[%clk 0:00:03.5]} 48. Ra6 {[%clk 0:00:04.9]}
48... Kf5 {[%clk 0:00:03.7]} 49. Rxb6 {[%clk 0:00:04.3]} 49... Nd5 {[%clk
0:00:04.2]} 50. Rb5 {[%clk 0:00:02.8]} 50... Nxf4+ {[%clk 0:00:03.4]} 51. gxf4
{[%clk 0:00:03.4]} 51... Rc2+ {[%clk 0:00:03.8]} 52. Kg3 {[%clk 0:00:02.7]}
52... Rc3+ {[%clk 0:00:03.8]} 53. Kf2 {[%clk 0:00:03.2]} 53... Kxf4 {[%clk
0:00:04.2]} 54. h5 {[%clk 0:00:03.5]} 54... Rc2+ {[%clk 0:00:04.3]} 55. Ke1
{[%clk 0:00:03.1]} 55... Rxa2 {[%clk 0:00:04.1]} 56. Rxc5 {[%clk 0:00:03.2]}
56... Rh2 {[%clk 0:00:04.2]} 57. Kf1 {[%clk 0:00:03.1]} 57... f5 {[%clk
0:00:04.2]} 58. Rc4+ {[%clk 0:00:02.7]} 58... Kg5 {[%clk 0:00:03.8]} 59. Rc3
{[%clk 0:00:02.7]} 59... Rxh5 {[%clk 0:00:04]} 60. Kg1 {[%clk 0:00:03.1]} 60...
Kf4 {[%clk 0:00:04.3]} 61. Kf2 {[%clk 0:00:03.6]} 61... Rh2+ {[%clk 0:00:04.2]}
62. Kg1 {[%clk 0:00:02]} 62... Ra2 {[%clk 0:00:05.1]} 63. Kf1 {[%clk 0:00:02.4]}
63... Kg4 {[%clk 0:00:05.7]} 64. Kg1 {[%clk 0:00:02.7]} 64... Rb2 {[%clk
0:00:06.2]} 65. Kf1 {[%clk 0:00:03]} 65... Rb1+ {[%clk 0:00:07.1]} 66. Kg2
{[%clk 0:00:02.9]} 66... Rb4 {[%clk 0:00:08]} 67. Kg1 {[%clk 0:00:03.2]} 67...
Re4 {[%clk 0:00:08.4]} 68. Kf2 {[%clk 0:00:03.4]} 68... Rf4+ {[%clk 0:00:08.8]}
69. Kg2 {[%clk 0:00:03.6]} 69... Rd4 {[%clk 0:00:08.7]} 70. Rg3+ {[%clk
0:00:04.1]} 70... Kh4 {[%clk 0:00:08]} 71. Rf3 {[%clk 0:00:04.5]} 71... Rg4+
{[%clk 0:00:07.8]} 72. Kf2 {[%clk 0:00:04.3]} 72... Kg5 {[%clk 0:00:08.3]} 73.
Rb3 {[%clk 0:00:04.3]} 73... Rc4 {[%clk 0:00:07.6]} 74. Kg2 {[%clk 0:00:04.6]}
74... Kg4 {[%clk 0:00:07.6]} 75. Kf2 {[%clk 0:00:05]} 75... Rc2+ {[%clk
0:00:07.3]} 76. Kf1 {[%clk 0:00:05.6]} 76... Kf4 {[%clk 0:00:07]} 77. Rd3 {[%clk
0:00:05.9]} 77... Ke4 {[%clk 0:00:07.4]} 78. Rb3 {[%clk 0:00:06]} 78... f4
{[%clk 0:00:07.8]} 79. Ra3 {[%clk 0:00:06.1]} 79... Rb2 {[%clk 0:00:07.9]} 80.
Rc3 {[%clk 0:00:05.7]} 80... Kf5 {[%clk 0:00:08.3]} 81. Ra3 {[%clk 0:00:05.5]}
81... Kg4 {[%clk 0:00:09]} 82. Rc3 {[%clk 0:00:05.7]} 82... Rb4 {[%clk
0:00:08.8]} 83. Ra3 {[%clk 0:00:05.3]} 83... Rd4 {[%clk 0:00:09.2]} 84. Rc3
{[%clk 0:00:05.2]} 84... Re4 {[%clk 0:00:09.2]} 85. Rd3 {[%clk 0:00:04.8]} 85...
f3 {[%clk 0:00:07.7]} 86. Rd8 {[%clk 0:00:03.9]} 86... Kf4 {[%clk 0:00:08.2]}
87. Kf2 {[%clk 0:00:01.9]} 87... Re2+ {[%clk 0:00:08]} 88. Kf1 {[%clk
0:00:02.4]} 88... Re7 {[%clk 0:00:06.5]} 89. Rd3 {[%clk 0:00:01.8]} 89... Rb7
{[%clk 0:00:03.8]} 90. Rd8 {[%clk 0:00:02]} 90... Rb1+ {[%clk 0:00:03.8]} 91.
Kf2 {[%clk 0:00:02.4]} 91... Rb2+ {[%clk 0:00:04.7]} 92. Kf1 {[%clk 0:00:02.7]}
92... Rb4 {[%clk 0:00:05.2]} 93. Rf8+ {[%clk 0:00:02.6]} 93... Ke3 {[%clk
0:00:05.7]} 94. Re8+ {[%clk 0:00:02.9]} 94... Kd3 {[%clk 0:00:05.7]} 95. Rd8+
{[%clk 0:00:02.6]} 95... Ke4 {[%clk 0:00:04.5]} 96. Re8+ {[%clk 0:00:02.8]}
96... Kf4 {[%clk 0:00:05.4]} 97. Rf8+ {[%clk 0:00:03.2]} 97... Kg3 {[%clk
0:00:06]} 98. Rg8+ {[%clk 0:00:03.5]} 98... Rg4 {[%clk 0:00:06.9]} 99. Rxg4+
{[%clk 0:00:03.3]} 99... Kxg4 {[%clk 0:00:07.5]} 100. Kf2 {[%clk 0:00:03.7]}
100... Kf4 {[%clk 0:00:08.4]} 101. Kf1 {[%clk 0:00:04]} 101... Kg3 {[%clk
0:00:08.6]} 102. Kg1 {[%clk 0:00:03.8]} 102... Kg4 {[%clk 0:00:09]} 103. Kf2
{[%clk 0:00:03.9]} 103... Kf4 {[%clk 0:00:09.9]} 104. Kf1 {[%clk 0:00:04.2]}
104... Ke4 {[%clk 0:00:10.8]} 105. Kf2 {[%clk 0:00:04.2]} 105... Kd3 {[%clk
0:00:11.5]} 106. Kxf3 {[%clk 0:00:04.1]} 1/2-1/2

[Event "*** Titled Tuesday Blitz"]
[Site "Chess.com"]
[Date "2020.04.14"]
[Round "4"]
[White "Micki-taryan"]
[Black "chito89"]
[Result "1-0"]
[WhiteElo "3117"]
[BlackElo "2788"]
[TimeControl "180+1"]
[EndTime "10:42:38 PDT"]
[Termination "Micki-taryan won on time"]

1. d4 {[%clk 0:03:00.9]} 1... Nf6 {[%clk 0:02:57.4]} 2. Nf3 {[%clk 0:03:01.3]}
2... e6 {[%clk 0:02:55.1]} 3. c4 {[%clk 0:03:01]} 3... Bb4+ {[%clk 0:02:53.8]}
4. Bd2 {[%clk 0:03:00.9]} 4... a5 {[%clk 0:02:53.6]} 5. g3 {[%clk 0:03:00.5]}
5... d6 {[%clk 0:02:43.7]} 6. Bg2 {[%clk 0:03:00.8]} 6... Nbd7 {[%clk
0:02:41.6]} 7. O-O {[%clk 0:03:00.6]} 7... e5 {[%clk 0:02:41.7]} 8. e3 {[%clk
0:02:55.4]} 8... c6 {[%clk 0:02:39.7]} 9. Bc1 {[%clk 0:02:47.9]} 9... e4 {[%clk
0:02:38.9]} 10. Nfd2 {[%clk 0:02:40.6]} 10... d5 {[%clk 0:02:34]} 11. Nc3 {[%clk
0:02:38.5]} 11... O-O {[%clk 0:02:03.8]} 12. a3 {[%clk 0:02:33.6]} 12... Be7
{[%clk 0:01:53.6]} 13. f3 {[%clk 0:02:20.6]} 13... exf3 {[%clk 0:01:52.4]} 14.
Qxf3 {[%clk 0:02:20.4]} 14... Nb6 {[%clk 0:01:51.6]} 15. c5 {[%clk 0:02:11.5]}
15... Nbd7 {[%clk 0:01:48.5]} 16. e4 {[%clk 0:02:00.1]} 16... dxe4 {[%clk
0:01:48.3]} 17. Ndxe4 {[%clk 0:02:00.6]} 17... Nxe4 {[%clk 0:01:48.4]} 18. Nxe4
{[%clk 0:02:00.9]} 18... Nf6 {[%clk 0:01:48.7]} 19. Be3 {[%clk 0:01:52.7]} 19...
Be6 {[%clk 0:01:31.6]} 20. Nc3 {[%clk 0:01:42]} 20... Nd5 {[%clk 0:01:26.4]} 21.
Bf2 {[%clk 0:01:33.7]} 21... Qd7 {[%clk 0:01:23]} 22. Rfe1 {[%clk 0:01:30.9]}
22... Rfe8 {[%clk 0:01:21.4]} 23. Qd3 {[%clk 0:01:26.6]} 23... f5 {[%clk
0:01:01.3]} 24. Rxe6 {[%clk 0:00:57.5]} 24... Qxe6 {[%clk 0:00:59.6]} 25. Nxd5
{[%clk 0:00:57.7]} 25... cxd5 {[%clk 0:01:00.1]} 26. Re1 {[%clk 0:00:57.8]}
26... Qd7 {[%clk 0:00:54.4]} 27. Re5 {[%clk 0:00:54.7]} 27... Bf6 {[%clk
0:00:52.7]} 28. Rxd5 {[%clk 0:00:54.1]} 28... Qa4 {[%clk 0:00:40.2]} 29. Rxf5
{[%clk 0:00:50.9]} 29... Rad8 {[%clk 0:00:40.7]} 30. d5 {[%clk 0:00:43.9]} 30...
Bxb2 {[%clk 0:00:36.2]} 31. d6 {[%clk 0:00:44.3]} 31... Qxa3 {[%clk 0:00:35.7]}
32. Qxa3 {[%clk 0:00:35.7]} 32... Bxa3 {[%clk 0:00:36.6]} 33. Bxb7 {[%clk
0:00:36.2]} 33... Rf8 {[%clk 0:00:23.5]} 34. Rd5 {[%clk 0:00:29.4]} 34... Bb4
{[%clk 0:00:18.8]} 35. Bc6 {[%clk 0:00:28.6]} 35... Rf6 {[%clk 0:00:13.1]} 36.
Bd4 {[%clk 0:00:25]} 36... Re6 {[%clk 0:00:12.2]} 37. Bb5 {[%clk 0:00:23]} 37...
Re1+ {[%clk 0:00:12.3]} 38. Kg2 {[%clk 0:00:23]} 38... Rd1 {[%clk 0:00:13.2]}
39. Bc4 {[%clk 0:00:19.3]} 39... Kh8 {[%clk 0:00:11.7]} 40. Bxg7+ {[%clk
0:00:18]} 40... Kxg7 {[%clk 0:00:10.6]} 41. Rxd1 {[%clk 0:00:18.6]} 41... Bxc5
{[%clk 0:00:11.4]} 42. d7 {[%clk 0:00:19.2]} 42... a4 {[%clk 0:00:11.9]} 43. Rd5
{[%clk 0:00:19.6]} 43... Be7 {[%clk 0:00:11.2]} 44. Ra5 {[%clk 0:00:17.1]} 44...
Rxd7 {[%clk 0:00:09.6]} 45. Rxa4 {[%clk 0:00:17.6]} 45... Rc7 {[%clk 0:00:10.1]}
46. Bd3 {[%clk 0:00:17.4]} 46... Bf6 {[%clk 0:00:10.3]} 47. Rg4+ {[%clk
0:00:17.7]} 47... Kf8 {[%clk 0:00:10.1]} 48. Rf4 {[%clk 0:00:18.6]} 48... Kg7
{[%clk 0:00:04.7]} 49. Bxh7 {[%clk 0:00:18.7]} 49... Be5 {[%clk 0:00:03.5]} 50.
Re4 {[%clk 0:00:17.5]} 50... Bxg3 {[%clk 0:00:04.4]} 51. Bf5 {[%clk 0:00:13.7]}
51... Bd6 {[%clk 0:00:04.9]} 52. h4 {[%clk 0:00:13]} 52... Kf6 {[%clk
0:00:05.4]} 53. Bg4 {[%clk 0:00:12.4]} 53... Rc2+ {[%clk 0:00:05.8]} 54. Kf3
{[%clk 0:00:12.7]} 54... Rc3+ {[%clk 0:00:06]} 55. Ke2 {[%clk 0:00:13.3]} 55...
Be5 {[%clk 0:00:06.3]} 56. Ra4 {[%clk 0:00:13.2]} 56... Rg3 {[%clk 0:00:07.1]}
57. Kf2 {[%clk 0:00:13]} 57... Rc3 {[%clk 0:00:06.4]} 58. Ra6+ {[%clk
0:00:13.3]} 58... Kg7 {[%clk 0:00:06.7]} 59. h5 {[%clk 0:00:13.8]} 59... Bd4+
{[%clk 0:00:07.1]} 60. Kg2 {[%clk 0:00:13.7]} 60... Be5 {[%clk 0:00:06.9]} 61.
Bf5 {[%clk 0:00:14]} 61... Rg3+ {[%clk 0:00:06.2]} 62. Kf2 {[%clk 0:00:14.5]}
62... Rg5 {[%clk 0:00:07.1]} 63. h6+ {[%clk 0:00:14.8]} 63... Kf7 {[%clk
0:00:06.6]} 64. Be4 {[%clk 0:00:14.6]} 64... Rh5 {[%clk 0:00:06.4]} 65. h7
{[%clk 0:00:14.4]} 65... Rh4 {[%clk 0:00:05.8]} 66. Kf3 {[%clk 0:00:14.3]} 66...
Rf4+ {[%clk 0:00:05.3]} 67. Ke3 {[%clk 0:00:14.9]} 67... Rh4 {[%clk 0:00:06.2]}
68. Ra5 {[%clk 0:00:15]} 68... Bf6 {[%clk 0:00:06.3]} 69. Ra7+ {[%clk 0:00:14]}
69... Be7 {[%clk 0:00:06.3]} 70. Ra6 {[%clk 0:00:14.9]} 70... Bf6 {[%clk
0:00:06.5]} 71. Kf3 {[%clk 0:00:15]} 71... Rh3+ {[%clk 0:00:05.6]} 72. Kg2
{[%clk 0:00:14.1]} 72... Rh4 {[%clk 0:00:06.5]} 73. Bf5 {[%clk 0:00:14.4]} 73...
Kg7 {[%clk 0:00:04.8]} 74. Kg3 {[%clk 0:00:13.4]} 74... Rh1 {[%clk 0:00:05.3]}
75. Be4 {[%clk 0:00:13.7]} 75... Rh6 {[%clk 0:00:04.8]} 76. Kg4 {[%clk
0:00:12.5]} 76... Rh4+ {[%clk 0:00:04.2]} 77. Kf3 {[%clk 0:00:12.2]} 77... Rh5
{[%clk 0:00:04.3]} 78. Rc6 {[%clk 0:00:10.7]} 78... Rh3+ {[%clk 0:00:04]} 79.
Kg4 {[%clk 0:00:10.6]} 79... Rh4+ {[%clk 0:00:04.9]} 80. Kf3 {[%clk 0:00:11]}
80... Rh3+ {[%clk 0:00:04.8]} 81. Kg2 {[%clk 0:00:11.4]} 81... Rh4 {[%clk
0:00:05.4]} 82. Bd3 {[%clk 0:00:11.8]} 82... Rh5 {[%clk 0:00:04.5]} 83. Rc7+
{[%clk 0:00:12.1]} 83... Kh6 {[%clk 0:00:03]} 84. Kf3 {[%clk 0:00:11.7]} 84...
Kg5 {[%clk 0:00:03.4]} 85. Rc5+ {[%clk 0:00:10.8]} 85... Kh6 {[%clk 0:00:03.8]}
86. Rc6 {[%clk 0:00:11.7]} 86... Kg5 {[%clk 0:00:03.9]} 87. Be4 {[%clk
0:00:11.9]} 87... Rh3+ {[%clk 0:00:04]} 88. Kg2 {[%clk 0:00:12.4]} 88... Rh4
{[%clk 0:00:04.9]} 89. Kf3 {[%clk 0:00:12.8]} 89... Rh3+ {[%clk 0:00:05]} 90.
Ke2 {[%clk 0:00:13.3]} 90... Rh4 {[%clk 0:00:05.9]} 91. Kd3 {[%clk 0:00:13.6]}
91... Rh3+ {[%clk 0:00:05.1]} 92. Kd2 {[%clk 0:00:14]} 92... Rh4 {[%clk
0:00:05.5]} 93. Bd3 {[%clk 0:00:14.4]} 93... Be5 {[%clk 0:00:03.8]} 94. Rg6+
{[%clk 0:00:13.9]} 94... Kf4 {[%clk 0:00:04.3]} 95. Re6 {[%clk 0:00:14.1]} 95...
Rh2+ {[%clk 0:00:04.8]} 96. Kd1 {[%clk 0:00:14.4]} 96... Rh1+ {[%clk 0:00:03.1]}
97. Kc2 {[%clk 0:00:14.2]} 97... Rh2+ {[%clk 0:00:04]} 98. Kb3 {[%clk
0:00:14.7]} 98... Rh3 {[%clk 0:00:04.4]} 99. Kc4 {[%clk 0:00:15]} 99... Rh5
{[%clk 0:00:04.9]} 100. Re8 {[%clk 0:00:14.5]} 100... Rh6 {[%clk 0:00:04.3]}
101. Kc5 {[%clk 0:00:12.4]} 101... Bd6+ {[%clk 0:00:03.8]} 102. Kd5 {[%clk
0:00:11.9]} 102... Rh5+ {[%clk 0:00:01.5]} 103. Kxd6 {[%clk 0:00:11.6]} 1-0

[Event "*** Titled Tuesday Blitz"]
[Site "Chess.com"]
[Date "2020.04.14"]
[Round "5"]
[White "MilanJeremic"]
[Black "IngOscarArdila"]
[Result "1/2-1/2"]
[WhiteElo "2268"]
[BlackElo "2107"]
[TimeControl "180+1"]
[EndTime "10:45:01 PDT"]
[Termination "Game drawn by repetition"]

1. d4 {[%clk 0:02:59.7]} 1... Nf6 {[%clk 0:02:59.6]} 2. Nf3 {[%clk 0:02:57.3]}
2... g6 {[%clk 0:03:00]} 3. e3 {[%clk 0:02:57.4]} 3... Bg7 {[%clk 0:03:00.5]} 4.
Be2 {[%clk 0:02:56.9]} 4... d6 {[%clk 0:03:01]} 5. O-O {[%clk 0:02:56.5]} 5...
O-O {[%clk 0:03:01.4]} 6. c4 {[%clk 0:02:56.5]} 6... Nbd7 {[%clk 0:03:01.9]} 7.
Nc3 {[%clk 0:02:56.4]} 7... e5 {[%clk 0:03:01.9]} 8. b3 {[%clk 0:02:56.5]} 8...
exd4 {[%clk 0:03:02.2]} 9. exd4 {[%clk 0:02:55.5]} 9... Re8 {[%clk 0:03:02.2]}
10. Bb2 {[%clk 0:02:55]} 10... c6 {[%clk 0:03:00.3]} 11. h3 {[%clk 0:02:54.5]}
11... Nf8 {[%clk 0:02:59.4]} 12. Re1 {[%clk 0:02:54.1]} 12... Bf5 {[%clk
0:02:58]} 13. Qd2 {[%clk 0:02:51.2]} 13... Ne4 {[%clk 0:02:54.3]} 14. Nxe4
{[%clk 0:02:49.9]} 14... Bxe4 {[%clk 0:02:55.2]} 15. Ng5 {[%clk 0:02:45.9]}
15... Bf5 {[%clk 0:02:51]} 16. Nf3 {[%clk 0:02:44.5]} 16... Be4 {[%clk
0:02:50.5]} 17. Ng5 {[%clk 0:02:42.5]} 17... Bf5 {[%clk 0:02:50.2]} 18. Nf3
{[%clk 0:02:42.2]} 18... Be4 {[%clk 0:02:50.2]} 1/2-1/2

[Event "*** Titled Tuesday Blitz"]
[Site "Chess.com"]
[Date "2020.04.14"]
[Round "5"]
[White "kintoho"]
[Black "BilguunSu"]
[Result "0-1"]
[WhiteElo "2435"]
[BlackElo "2665"]
[TimeControl "180+1"]
[EndTime "10:46:04 PDT"]
[Termination "BilguunSu won by resignation"]

1. e4 {[%clk 0:03:00.9]} 1... c5 {[%clk 0:03:00.4]} 2. Nf3 {[%clk 0:03:00]} 2...
e6 {[%clk 0:03:00.9]} 3. c4 {[%clk 0:02:59]} 3... a6 {[%clk 0:02:58.3]} 4. Nc3
{[%clk 0:02:58.9]} 4... b6 {[%clk 0:02:58.1]} 5. d4 {[%clk 0:02:53.1]} 5... cxd4
{[%clk 0:02:57.6]} 6. Nxd4 {[%clk 0:02:53.2]} 6... Bb7 {[%clk 0:02:57.7]} 7. Be2
{[%clk 0:02:51.2]} 7... Qc7 {[%clk 0:02:57.7]} 8. O-O {[%clk 0:02:49.6]} 8...
Nf6 {[%clk 0:02:57.4]} 9. f3 {[%clk 0:02:48.1]} 9... Bd6 {[%clk 0:02:45.9]} 10.
Kh1 {[%clk 0:02:41.2]} 10... Bxh2 {[%clk 0:02:22.4]} 11. f4 {[%clk 0:02:41]}
11... Bg3 {[%clk 0:02:21.9]} 12. e5 {[%clk 0:02:37.9]} 12... Ne4 {[%clk
0:02:08.6]} 13. Nxe4 {[%clk 0:02:37.2]} 13... Bxe4 {[%clk 0:02:07.4]} 14. Bf3
{[%clk 0:02:37.5]} 14... Qd8 {[%clk 0:02:02.4]} 15. Bg4 {[%clk 0:02:22.5]} 15...
Qh4+ {[%clk 0:02:01.5]} 16. Bh3 {[%clk 0:02:22.6]} 16... Qxh3+ {[%clk
0:02:01.7]} 0-1